bitfinex/quotes_BTCUSD_20241202
["timestamp","ask_amount","ask_price","bid_price","bid_amount"]
[1733147433078,0.0008635,95831.0,95830.0,0.33454721]
[1733147433330,0.0008635,95831.0,95830.0,0.66334721]
[1733147433577,0.0008635,95831.0,95830.0,0.46334721]
[1733147435075,0.0018635,95831.0,95830.0,0.46334721]
[1733147435283,0.0008635,95831.0,95830.0,0.46334721]
[1733147435518,0.0008635,95831.0,95830.0,0.46934721]
[1733147435751,0.0018635,95831.0,95830.0,0.47734721]
[1733147436629,0.0018635,95831.0,95830.0,0.53441595]
[1733147437530,0.0018635,95831.0,95830.0,0.73441595]
[1733147439011,0.0018635,95831.0,95830.0,0.53441595]
[1733147440782,0.0018635,95831.0,95830.0,0.47734721]
[1733147444341,0.0018635,95831.0,95830.0,0.67734721]
[1733147444567,0.0018635,95831.0,95830.0,0.87734721]
[1733147445731,0.0018635,95831.0,95830.0,0.67734721]
[1733147445962,0.0018635,95831.0,95830.0,0.87734721]
[1733147447828,0.0018635,95831.0,95830.0,0.67734721]
[1733147448060,0.0018635,95831.0,95830.0,0.78017867]
[1733147449191,0.0018635,95831.0,95830.0,0.67734721]
[1733147450334,0.0018635,95831.0,95830.0,0.47734721]
[1733147452931,0.0018635,95831.0,95830.0,0.34854721]
[1733147453164,0.0018635,95831.0,95830.0,0.11684521]
[1733147453627,0.0018635,95831.0,95830.0,0.014]
[1733147454067,0.00848167,95831.0,95830.0,0.014]
[1733147454294,0.0018635,95831.0,95830.0,0.014]
[1733147454522,0.00848167,95831.0,95830.0,0.014]
[1733147454757,0.0018635,95831.0,95830.0,0.008]
[1733147455214,0.0008635,95831.0,95830.0,0.003]
[1733147455676,0.0008635,95831.0,95830.0,0.006]
[1733147457085,0.0008635,95831.0,95830.0,0.13069205]
[1733147457571,0.0008635,95831.0,95830.0,0.13269205]
[1733147458002,0.0008635,95831.0,95830.0,0.13069205]
[1733147458441,0.0008635,95831.0,95830.0,0.13369205]
[1733147458877,0.0008635,95831.0,95830.0,0.13069205]
[1733147459096,0.0008635,95831.0,95830.0,0.23352351]
[1733147459316,0.0008635,95831.0,95830.0,0.23367667]
[1733147459592,0.0008635,95831.0,95830.0,0.43167667]
[1733147459807,0.0008635,95831.0,95830.0,0.43467667]
[1733147460738,0.0008635,95831.0,95830.0,0.42867667]
[1733147460961,0.0018635,95831.0,95830.0,0.43667667]
[1733147461171,0.0018635,95831.0,95830.0,0.44167667]
[1733147464829,0.0018635,95831.0,95830.0,0.24167667]
[1733147465047,0.0018635,95831.0,95830.0,0.44167667]
[1733147465271,0.0018635,95831.0,95830.0,0.35591955]
[1733147472705,0.0008634,95841.0,95830.0,0.35591955]
[1733147472706,0.0008634,95841.0,95840.0,0.208681]
[1733147472992,0.0008634,95841.0,95840.0,0.33637261]
[1733147473209,0.0008634,95841.0,95840.0,0.61452621]
[1733147473503,0.0008634,95841.0,95840.0,0.71735767]
[1733147473979,0.00104133,95841.0,95840.0,0.71735767]
[1733147474227,0.00104133,95841.0,95840.0,0.72335767]
[1733147474706,0.00104133,95841.0,95840.0,0.52335767]
[1733147474964,0.00104133,95841.0,95840.0,0.72335767]
[1733147475684,0.00104133,95841.0,95840.0,0.77105767]
[1733147476149,0.00104133,95841.0,95840.0,0.79221095]
[1733147476866,0.00104133,95841.0,95840.0,0.78621095]
[1733147477080,0.00104133,95841.0,95840.0,0.79621095]
[1733147477579,0.00104133,95841.0,95840.0,0.78621095]
[1733147477824,0.00104133,95841.0,95840.0,0.34352621]
[1733147477825,0.00204133,95841.0,95840.0,0.34352621]
[1733147478046,0.00204133,95841.0,95840.0,0.35052621]
[1733147478490,0.00204133,95841.0,95840.0,0.32752621]
[1733147479901,0.00204133,95841.0,95840.0,0.34475519]
[1733147480116,0.00204133,95841.0,95840.0,0.36775519]
[1733147482420,0.00204133,95841.0,95840.0,0.11884521]
[1733147482890,0.00895243,95841.0,95840.0,0.11884521]
[1733147483118,0.00204133,95841.0,95840.0,0.016]
[1733147483338,0.00893658,95841.0,95840.0,0.009]
[1733147483569,0.04834133,95841.0,95840.0,0.004]
[1733147483794,0.13677438,95841.0,95840.0,0.004]
[1733147484031,0.69557588,95841.0,95840.0,0.006]
[1733147484252,0.208723,95821.0,95805.0,0.00357397]
[1733147484501,0.208723,95821.0,95813.0,0.10457201]
[1733147484502,0.208731,95818.0,95813.0,0.10457201]
[1733147484725,0.13342471,95820.0,95813.0,0.10457201]
[1733147484971,0.335325,95820.0,95813.0,0.0017268]
[1733147485187,0.21555171,95819.0,95813.0,0.0017268]
[1733147485626,0.208735,95816.0,95813.0,0.0017268]
[1733147485850,0.00682471,95819.0,95813.0,0.0017268]
[1733147486076,0.417452,95820.0,95813.0,0.0017268]
[1733147486510,0.00682471,95819.0,95813.0,0.0017268]
[1733147486727,0.208729,95818.0,95813.0,0.0027268]
[1733147486980,0.208737,95814.0,95813.0,0.0027268]
[1733147487205,0.208735,95815.0,95813.0,0.0017268]
[1733147487444,0.00682471,95814.0,95813.0,0.0017268]
[1733147488829,0.338133,95816.0,95813.0,0.0017268]
[1733147489201,0.00682471,95814.0,95813.0,0.0017268]
[1733147489205,0.0787,95824.0,95813.0,0.0017268]
[1733147489406,0.00682471,95815.0,95813.0,0.10457201]
[1733147489606,0.287417,95824.0,95813.0,0.10657201]
[1733147489840,0.287417,95824.0,95813.0,0.10757201]
[1733147490180,0.00682471,95823.0,95813.0,0.10557201]
[1733147491203,0.00682471,95823.0,95814.0,0.417474]
[1733147491417,0.00682471,95823.0,95815.0,0.00184706]
[1733147491616,0.003,95824.0,95815.0,0.00184706]
[1733147491617,0.003,95824.0,95820.0,0.208723]
[1733147491833,0.003,95824.0,95820.0,0.417446]
[1733147492513,0.047,95837.0,95821.0,0.208722]
[1733147492740,0.047,95837.0,95817.0,0.00184706]
[1733147492741,0.002,95823.0,95817.0,0.00184706]
[1733147492968,0.208699,95832.0,95818.0,0.10284521]
[1733147493183,0.208702,95830.0,95818.0,0.10469227]
[1733147493439,0.0762,95823.0,95813.0,0.0017268]
[1733147493642,0.0510378,95822.0,95813.0,0.0017268]
[1733147494107,0.0510378,95822.0,95821.0,0.001]
[1733147495511,0.0510378,95822.0,95813.0,0.0017268]
[1733147495726,0.2109598,95821.0,95813.0,0.0017268]
[1733147495964,0.208733,95816.0,95813.0,0.0017268]
[1733147496190,0.0022378,95815.0,95813.0,0.0017268]
[1733147496374,0.208737,95814.0,95813.0,0.0017268]
[1733147497083,0.417458,95818.0,95813.0,0.0017268]
[1733147497314,0.208737,95814.0,95813.0,0.0017268]
[1733147497553,0.208731,95817.0,95813.0,0.0017268]
[1733147497783,0.0022378,95816.0,95813.0,0.0017268]
[1733147498257,0.0022378,95818.0,95813.0,0.0017268]
[1733147498508,0.001,95821.0,95813.0,0.0037268]
[1733147498717,0.001,95821.0,95814.0,0.10469227]
[1733147498940,0.2109358,95832.0,95815.0,0.208735]
[1733147499187,0.0022378,95831.0,95818.0,0.208729]
[1733147499434,0.0022378,95831.0,95822.0,0.208718]
[1733147499882,0.0022378,95835.0,95822.0,0.208718]
[1733147500121,0.09648108,95836.0,95818.0,0.10284521]
[1733147500122,0.0022378,95834.0,95818.0,0.10284521]
[1733147500361,0.005,95831.0,95818.0,0.10284521]
[1733147500614,0.208696,95833.0,95819.0,0.208726]
[1733147500853,0.208696,95833.0,95818.0,0.10284521]
[1733147500854,0.2087,95831.0,95818.0,0.10284521]
[1733147501080,0.0022378,95830.0,95818.0,0.10284521]
[1733147501326,0.003,95831.0,95818.0,0.10284521]
[1733147501544,0.0022378,95835.0,95822.0,0.208718]
[1733147501789,0.003,95833.0,95822.0,0.208718]
[1733147502291,0.005,95831.0,95822.0,0.208718]
[1733147502505,0.003,95833.0,95822.0,0.208718]
[1733147502726,0.003,95833.0,95822.0,0.209718]
[1733147502966,0.0072378,95835.0,95822.0,0.209718]
[1733147503183,0.0022378,95835.0,95822.0,0.208718]
[1733147503396,0.003,95831.0,95825.0,0.208712]
[1733147503633,0.003,95831.0,95822.0,0.001]
[1733147503830,0.0022378,95833.0,95823.0,0.208718]
[1733147504705,0.0022378,95838.0,95827.0,0.208707]
[1733147504958,0.003,95833.0,95827.0,0.208707]
[1733147505168,0.208698,95832.0,95822.0,0.001]
[1733147505414,0.208706,95829.0,95822.0,0.001]
[1733147505649,0.208707,95828.0,95817.0,0.10284521]
[1733147505889,0.0475,95831.0,95827.0,0.001]
[1733147506108,0.0475,95831.0,95797.0,0.208772]
[1733147506109,0.15,95829.0,95797.0,0.208772]
[1733147506344,0.20873,95818.0,95800.0,0.208766]
[1733147507287,0.2025,95831.0,95797.0,0.208772]
[1733147507511,0.002,95829.0,95797.0,0.208772]
[1733147507719,0.208733,95816.0,95797.0,0.208772]
[1733147507933,0.0022378,95815.0,95801.0,0.208765]
[1733147508156,0.0022378,95815.0,95813.0,0.0027268]
[1733147508625,0.208737,95814.0,95813.0,0.0027268]
[1733147508877,0.2109748,95815.0,95813.0,0.0027268]
[1733147509318,0.2109748,95815.0,95813.0,0.0037268]
[1733147509542,0.0022378,95815.0,95813.0,0.0027268]
[1733147509765,0.0022378,95818.0,95813.0,0.0027268]
[1733147510007,0.0022378,95818.0,95813.0,0.0047268]
[1733147510242,0.208724,95820.0,95813.0,0.0037268]
[1733147510467,0.208729,95818.0,95813.0,0.0047268]
[1733147510711,0.0022378,95817.0,95813.0,0.0027268]
[1733147511180,0.0022378,95817.0,95813.0,0.0017268]
[1733147511411,0.2109708,95817.0,95813.0,0.0027268]
[1733147512043,0.2109708,95817.0,95813.0,0.0037268]
[1733147512493,0.0022378,95817.0,95813.0,0.0027268]
[1733147512496,0.20180089,95820.0,95813.0,0.0027268]
[1733147512762,0.18765666,95820.0,95813.0,0.0027268]
[1733147512965,0.208733,95816.0,95813.0,0.0027268]
[1733147513435,0.18765666,95820.0,95813.0,0.0017268]
[1733147513672,0.18765666,95820.0,95813.0,0.0027268]
[1733147514133,0.18765666,95820.0,95813.0,0.0017268]
[1733147514556,0.18765666,95820.0,95813.0,0.0027268]
[1733147515025,0.18765666,95820.0,95813.0,0.0017268]
[1733147515682,0.18865666,95820.0,95813.0,0.0017268]
[1733147516616,0.001,95820.0,95814.0,0.208737]
[1733147517058,0.001,95820.0,95818.0,0.208728]
[1733147517714,0.001,95820.0,95819.0,0.10469237]
[1733147517946,0.001,95820.0,95819.0,0.10284521]
[1733147518157,0.001,95820.0,95819.0,0.10469223]
[1733147518799,0.0008632,95831.0,95819.0,0.10469223]
[1733147519011,0.0008632,95831.0,95823.0,0.208716]
[1733147520417,0.0058632,95831.0,95823.0,0.208716]
[1733147520659,0.0058632,95831.0,95827.0,0.417416]
[1733147520903,0.0058632,95831.0,95829.0,0.257305]
[1733147521153,0.0058632,95831.0,95830.0,0.104692]
[1733147521391,0.0058632,95831.0,95830.0,0.00184679]
[1733147521638,0.0058632,95831.0,95818.0,0.0486]
[1733147521639,0.0058632,95831.0,95816.0,0.0802]
[1733147521880,0.0008632,95831.0,95821.0,0.20872]
[1733147522105,0.0078632,95831.0,95821.0,0.20872]
[1733147522575,0.0028632,95831.0,95822.0,0.20872]
[1733147522793,0.0008632,95831.0,95830.0,0.003]
[1733147523022,0.0008632,95831.0,95822.0,0.20872]
[1733147523459,0.0008632,95831.0,95821.0,0.003]
[1733147523676,0.0008632,95831.0,95818.0,0.00184702]
[1733147523901,0.2095652,95831.0,95819.0,0.10284521]
[1733147524352,0.2095652,95831.0,95816.0,0.002]
[1733147524353,0.208712,95826.0,95816.0,0.002]
[1733147524565,0.0008632,95831.0,95807.0,0.208752]
[1733147524793,0.208725,95820.0,95803.0,0.20876]
[1733147525010,0.208725,95820.0,95818.0,0.002]
[1733147525468,0.208732,95817.0,95803.0,0.20876]
[1733147525694,0.001,95826.0,95802.0,0.21060935]
[1733147525915,0.208725,95820.0,95802.0,0.21060935]
[1733147526343,0.208725,95820.0,95818.0,0.002]
[1733147526560,0.02073661,95819.0,95810.0,0.208745]
[1733147526795,0.02073661,95819.0,95805.0,0.2104818]
[1733147527037,0.02073661,95819.0,95808.0,0.208748]
[1733147527270,0.208709,95827.0,95808.0,0.208748]
[1733147527496,0.208709,95827.0,95818.0,0.002]
[1733147527708,0.02050049,95828.0,95818.0,0.002]
[1733147527996,0.02050049,95828.0,95818.0,0.0825]
[1733147528451,0.22920749,95828.0,95813.0,0.0037268]
[1733147528658,0.22920749,95828.0,95813.0,0.10657201]
[1733147528877,0.22920749,95828.0,95818.0,0.003]
[1733147529311,0.22920749,95828.0,95814.0,0.208737]
[1733147529981,0.22920749,95828.0,95813.0,0.10457201]
[1733147529982,0.208709,95827.0,95813.0,0.10457201]
[1733147530441,0.208711,95826.0,95813.0,0.10457201]
[1733147531131,0.02050049,95828.0,95814.0,0.208737]
[1733147531132,0.208709,95827.0,95814.0,0.208737]
[1733147531360,0.417418,95827.0,95813.0,0.10457201]
[1733147531592,0.208709,95827.0,95813.0,0.10457201]
[1733147532077,0.01633343,95830.0,95814.0,0.17815277]
[1733147532334,0.01633343,95830.0,95814.0,0.15124521]
[1733147532538,0.01633343,95830.0,95818.0,0.001727]
[1733147532747,0.208705,95829.0,95819.0,0.10284521]
[1733147533204,0.01633343,95830.0,95819.0,0.10284521]
[1733147533841,0.01633343,95830.0,95819.0,0.10469224]
[1733147534070,0.01633343,95830.0,95819.0,0.10284521]
[1733147535020,0.01833343,95830.0,95819.0,0.10284521]
[1733147535240,0.01733343,95830.0,95819.0,0.10469224]
[1733147535454,0.01833343,95830.0,95819.0,0.10469224]
[1733147535912,0.01833343,95830.0,95819.0,0.10284521]
[1733147536569,0.01833343,95830.0,95819.0,0.10469224]
[1733147536831,0.01833343,95830.0,95820.0,0.208724]
[1733147537058,0.002,95830.0,95821.0,0.10469224]
[1733147537541,0.002,95830.0,95826.0,0.208709]
[1733147537753,0.001,95830.0,95828.0,0.208707]
[1733147537966,0.0008632,95831.0,95830.0,0.208702]
[1733147538192,0.0008632,95831.0,95830.0,0.31339385]
[1733147538411,0.0008632,95831.0,95830.0,0.31154721]
[1733147538667,0.0008632,95831.0,95830.0,0.41544721]
[1733147538879,0.0008632,95831.0,95830.0,0.66184721]
[1733147539170,0.0008632,95831.0,95830.0,0.76467867]
[1733147539685,0.0008632,95831.0,95830.0,0.76867867]
[1733147539924,0.0008632,95831.0,95830.0,0.76467867]
[1733147540838,0.0008632,95831.0,95830.0,0.77367867]
[1733147541270,0.0008632,95831.0,95830.0,0.78067867]
[1733147541484,0.0008632,95831.0,95830.0,0.76467867]
[1733147541723,0.0008632,95831.0,95830.0,0.77367867]
[1733147541943,0.0008632,95831.0,95830.0,0.78267867]
[1733147542163,0.0008632,95831.0,95830.0,0.47984721]
[1733147543001,0.0008632,95831.0,95830.0,0.67984721]
[1733147543266,0.0008632,95831.0,95830.0,0.47984721]
[1733147543717,0.0008632,95831.0,95830.0,0.67984721]
[1733147545527,0.00104133,95841.0,95840.0,0.558681]
[1733147545750,0.00104133,95841.0,95840.0,0.75913181]
[1733147546716,0.00104133,95841.0,95840.0,0.56513181]
[1733147547183,0.00104133,95841.0,95840.0,0.76513181]
[1733147548403,0.00104133,95841.0,95840.0,0.77413181]
[1733147549111,0.00104133,95841.0,95840.0,0.92413181]
[1733147549326,0.00104133,95841.0,95840.0,1.12413181]
[1733147551446,0.00104133,95841.0,95840.0,1.14120875]
[1733147553075,0.00104133,95841.0,95840.0,1.04360315]
[1733147553578,0.00104133,95841.0,95840.0,0.84360315]
[1733147554493,0.00104133,95841.0,95840.0,1.04360315]
[1733147555850,0.0008633,95855.0,95851.0,0.2]
[1733147556093,0.00092257,95855.0,95854.0,0.33449521]
[1733147556324,0.00092257,95855.0,95854.0,0.53449521]
[1733147557906,0.00092257,95855.0,95854.0,0.54349521]
[1733147558099,0.00092257,95855.0,95854.0,0.54149521]
[1733147558310,0.00092257,95855.0,95854.0,0.55049521]
[1733147558528,0.00092257,95855.0,95854.0,0.65332667]
[1733147559181,3e-07,95864.0,95863.0,0.708831]
[1733147559395,3e-07,95864.0,95863.0,1.01167621]
[1733147560501,3e-07,95864.0,95863.0,1.01767621]
[1733147560734,3e-07,95864.0,95863.0,1.12050767]
[1733147560952,3e-07,95864.0,95863.0,0.92950767]
[1733147561167,3e-07,95864.0,95863.0,1.12950767]
[1733147562071,3e-07,95864.0,95863.0,0.72950767]
[1733147562305,3e-07,95864.0,95863.0,0.92950767]
[1733147562737,3e-07,95864.0,95863.0,0.72950767]
[1733147563937,3e-07,95864.0,95863.0,0.62667621]
[1733147564617,3e-07,95864.0,95863.0,0.43047621]
[1733147565521,3e-07,95864.0,95863.0,0.34947621]
[1733147565762,3e-07,95864.0,95863.0,0.32647621]
[1733147565987,3e-07,95864.0,95863.0,0.11784521]
[1733147566923,3e-07,95864.0,95863.0,0.015]
[1733147567625,3e-07,95864.0,95863.0,0.006]
[1733147567849,3e-07,95864.0,95863.0,0.13649383]
[1733147568070,3e-07,95864.0,95863.0,0.13834003]
[1733147568288,3e-07,95864.0,95863.0,0.13049383]
[1733147568502,3e-07,95864.0,95863.0,0.12934003]
[1733147568716,3e-07,95864.0,95863.0,0.12634003]
[1733147568930,3e-07,95864.0,95863.0,0.10769141]
[1733147569147,3e-07,95864.0,95863.0,0.11084521]
[1733147569370,3e-07,95864.0,95863.0,0.10284521]
[1733147569836,3e-07,95864.0,95863.0,0.10684521]
[1733147570060,3e-07,95864.0,95863.0,0.10857141]
[1733147570283,3e-07,95864.0,95863.0,0.10457141]
[1733147570498,3e-07,95864.0,95863.0,0.10757141]
[1733147571620,3e-07,95864.0,95863.0,0.11557141]
[1733147572714,3e-07,95864.0,95863.0,0.12157141]
[1733147573004,3e-07,95864.0,95863.0,0.33020241]
[1733147573256,3e-07,95864.0,95863.0,0.17564017]
[1733147573499,3e-07,95864.0,95863.0,0.12157141]
[1733147573712,3e-07,95864.0,95863.0,0.33020241]
[1733147574366,3e-07,95864.0,95863.0,0.12157141]
[1733147576422,3e-07,95864.0,95863.0,0.0187262]
[1733147577067,0.01055722,95864.0,95863.0,0.0187262]
[1733147577290,0.05685722,95864.0,95863.0,0.0187262]
[1733147578413,0.05685722,95864.0,95863.0,0.0157262]
[1733147578631,0.05685722,95864.0,95863.0,0.0017262]
[1733147578864,0.05685722,95864.0,95863.0,0.0027262]
[1733147579388,0.05685722,95864.0,95863.0,0.0017262]
[1733147581461,0.01055722,95864.0,95863.0,0.0017262]
[1733147581684,3e-07,95864.0,95863.0,0.0017262]
[1733147582824,0.01047108,95864.0,95863.0,0.0027262]
[1733147583038,3e-07,95864.0,95863.0,0.0047262]
[1733147583262,3e-07,95864.0,95863.0,0.0037262]
[1733147583471,0.01047108,95864.0,95863.0,0.0047262]
[1733147583909,0.01047108,95864.0,95863.0,0.0037262]
[1733147584559,0.01047108,95864.0,95863.0,0.0017262]
[1733147585019,0.01047108,95864.0,95863.0,0.0037262]
[1733147585730,0.09357108,95864.0,95863.0,0.0047262]
[1733147586161,0.09357108,95864.0,95863.0,0.0017262]
[1733147586815,0.01047108,95864.0,95863.0,0.0017262]
[1733147587494,3e-07,95864.0,95863.0,0.0017262]
[1733147588119,0.01043109,95864.0,95863.0,0.0017262]
[1733147588374,0.21905909,95864.0,95863.0,0.0057262]
[1733147588602,0.21905909,95864.0,95863.0,0.0017262]
[1733147588813,0.21905909,95864.0,95863.0,0.0047262]
[1733147589025,0.21905909,95864.0,95863.0,0.0067262]
[1733147589478,0.21905909,95864.0,95863.0,0.0047262]
[1733147589949,0.21905909,95864.0,95863.0,0.0057262]
[1733147591238,0.21905909,95864.0,95863.0,0.0027262]
[1733147591899,0.21905909,95864.0,95863.0,0.0017262]
[1733147593408,0.01043109,95864.0,95863.0,0.0017262]
[1733147595148,3e-07,95864.0,95863.0,0.0017262]
[1733147595384,0.01043109,95864.0,95863.0,0.0017262]
[1733147595619,3e-07,95864.0,95863.0,0.10457141]
[1733147596360,3e-07,95864.0,95863.0,0.0017262]
[1733147596803,3e-07,95864.0,95863.0,0.0027262]
[1733147597080,0.01044178,95864.0,95863.0,0.0027262]
[1733147597532,0.01044178,95864.0,95863.0,0.0037262]
[1733147597758,0.01044178,95864.0,95863.0,0.0027262]
[1733147597969,0.01044178,95864.0,95863.0,0.0017262]
[1733147598200,0.01044178,95864.0,95863.0,0.0067262]
[1733147598407,0.01044178,95864.0,95863.0,0.0087262]
[1733147598849,0.01044178,95864.0,95863.0,0.0017262]
[1733147599479,0.01043816,95864.0,95863.0,0.0017262]
[1733147601711,0.08643816,95864.0,95863.0,0.0017262]
[1733147607299,0.01043816,95864.0,95863.0,0.0017262]
[1733147611041,3e-07,95864.0,95863.0,0.10457141]
[1733147611448,3e-07,95864.0,95863.0,0.14130326]
[1733147611672,3e-07,95864.0,95863.0,0.10457141]
[1733147613737,3e-07,95864.0,95863.0,0.23097141]
[1733147614001,3e-07,95864.0,95863.0,0.22797141]
[1733147614217,0.20795632,95883.0,95868.0,0.208618]
[1733147614436,0.20795632,95883.0,95869.0,0.06532174]
[1733147614656,0.208597,95879.0,95869.0,0.06532174]
[1733147614885,0.208597,95879.0,95864.0,0.208628]
[1733147615157,0.208597,95879.0,95866.0,0.208624]
[1733147615376,0.01043153,95878.0,95866.0,0.10284521]
[1733147615818,0.20859,95882.0,95866.0,0.10284521]
[1733147616039,0.02111967,95885.0,95866.0,0.10284521]
[1733147616257,0.2086,95877.0,95866.0,0.10284521]
[1733147616756,0.01043153,95876.0,95866.0,0.10284521]
[1733147616973,0.208604,95875.0,95866.0,0.10284521]
[1733147617213,0.01043153,95876.0,95866.0,0.10284521]
[1733147617434,0.2086,95877.0,95866.0,0.10284521]
[1733147617672,0.01043153,95875.0,95866.0,0.10284521]
[1733147618128,0.01043153,95874.0,95866.0,0.10284521]
[1733147618352,0.2086,95877.0,95866.0,0.10284521]
[1733147618576,0.01043153,95873.0,95866.0,0.10284521]
[1733147618806,0.2086,95877.0,95866.0,0.10284521]
[1733147619099,0.01043153,95872.0,95866.0,0.10284521]
[1733147619333,0.01046632,95871.0,95867.0,0.208622]
[1733147619551,0.01046632,95871.0,95868.0,0.20862]
[1733147619768,0.208585,95884.0,95868.0,0.20862]
[1733147620212,0.208589,95882.0,95868.0,0.20862]
[1733147620456,0.208589,95882.0,95868.0,0.23409469]
[1733147620914,0.01046632,95881.0,95868.0,0.23409469]
[1733147621364,0.01046632,95881.0,95870.0,0.208615]
[1733147621841,0.208585,95884.0,95870.0,0.208615]
[1733147622052,0.01046632,95880.0,95870.0,0.208615]
[1733147622266,0.208585,95884.0,95870.0,0.208615]
[1733147622503,0.01046632,95879.0,95870.0,0.208615]
[1733147622731,0.02111967,95885.0,95873.0,0.208607]
[1733147623016,0.208571,95891.0,95877.0,0.208598]
[1733147623243,0.01046632,95884.0,95874.0,0.208607]
[1733147623457,0.208571,95891.0,95874.0,0.208607]
[1733147623684,0.208571,95891.0,95875.0,0.0143738]
[1733147624128,0.208578,95887.0,95875.0,0.0143738]
[1733147624346,0.208578,95887.0,95873.0,0.31145321]
[1733147624790,0.01046632,95886.0,95873.0,0.31145321]
[1733147626235,0.208583,95885.0,95873.0,0.31145321]
[1733147626696,0.01046632,95884.0,95873.0,0.31145321]
[1733147627353,0.01046632,95884.0,95875.0,0.208604]
[1733147627572,0.0008633,95889.0,95875.0,0.06229319]
[1733147627798,0.01046632,95883.0,95875.0,0.06229319]
[1733147628071,0.0008633,95889.0,95874.0,0.0774]
[1733147628289,0.01046632,95882.0,95874.0,0.0774]
[1733147628529,0.208576,95888.0,95874.0,0.0774]
[1733147628764,0.01046632,95881.0,95874.0,0.0774]
[1733147628991,0.208576,95888.0,95875.0,0.208604]
[1733147629451,0.01046632,95887.0,95874.0,0.0774]
[1733147629668,0.208583,95885.0,95873.0,0.001726]
[1733147629889,0.208595,95880.0,95873.0,0.001726]
[1733147630107,0.208602,95876.0,95873.0,0.001726]
[1733147630333,0.208607,95874.0,95873.0,0.001726]
[1733147630805,0.55955221,95874.0,95873.0,0.001726]
[1733147631040,0.57001853,95874.0,95873.0,0.001726]
[1733147631282,0.6636845,95874.0,95873.0,0.001726]
[1733147631758,0.57001853,95874.0,95873.0,0.001726]
[1733147633378,0.59069301,95874.0,95873.0,0.001726]
[1733147635898,0.68437598,95874.0,95873.0,0.001726]
[1733147636333,0.74069301,95874.0,95873.0,0.001726]
[1733147638155,0.83436907,95874.0,95873.0,0.001726]
[1733147638404,0.74069301,95874.0,95873.0,0.001726]
[1733147638634,0.88121746,95874.0,95873.0,0.001726]
[1733147638854,0.74069301,95874.0,95873.0,0.001726]
[1733147639087,0.88121746,95874.0,95873.0,0.001726]
[1733147639806,0.83435501,95874.0,95873.0,0.001726]
[1733147640259,0.81629301,95874.0,95873.0,0.001726]
[1733147640933,0.95678318,95874.0,95873.0,0.001726]
[1733147641654,0.81629301,95874.0,95873.0,0.002726]
[1733147642133,1.00365895,95874.0,95873.0,0.002726]
[1733147642630,0.81629301,95874.0,95873.0,0.002726]
[1733147642853,0.95408011,95874.0,95873.0,0.002726]
[1733147643764,0.9540661,95874.0,95873.0,0.002726]
[1733147644420,0.81362123,95874.0,95873.0,0.002726]
[1733147645374,0.9540661,95874.0,95873.0,0.002726]
[1733147645847,1.01362123,95874.0,95873.0,0.002726]
[1733147646099,1.20085085,95874.0,95873.0,0.002726]
[1733147646318,1.15404071,95874.0,95873.0,0.002726]
[1733147646541,0.81362123,95874.0,95873.0,0.002726]
[1733147647029,0.96552123,95874.0,95873.0,0.002726]
[1733147647779,0.76552123,95874.0,95873.0,0.002726]
[1733147648243,0.96552123,95874.0,95873.0,0.002726]
[1733147648474,0.76552123,95874.0,95873.0,0.002726]
[1733147648699,0.96552123,95874.0,95873.0,0.002726]
[1733147652246,0.96552123,95874.0,95873.0,1e-06]
[1733147652509,1.15274071,95874.0,95873.0,1e-06]
[1733147653212,1.01232123,95874.0,95873.0,1e-06]
[1733147653456,1.16751923,95874.0,95873.0,1e-06]
[1733147653699,1.44840898,95874.0,95873.0,1e-06]
[1733147653913,1.16751923,95874.0,95873.0,1e-06]
[1733147655038,1.4482206,95874.0,95873.0,1e-06]
[1733147655351,1.16751923,95874.0,95873.0,1e-06]
[1733147655749,1.16751923,95874.0,95873.0,0.001001]
[1733147655750,1.36359242,95874.0,95873.0,0.001001]
[1733147656012,1.01832123,95874.0,95873.0,1e-06]
[1733147656238,1.01832123,95874.0,95873.0,0.001001]
[1733147656462,1.02132123,95874.0,95873.0,0.001001]
[1733147656740,1.11485117,95874.0,95873.0,0.001001]
[1733147656961,1.12085117,95874.0,95873.0,0.001001]
[1733147657662,1.02732123,95874.0,95873.0,0.001001]
[1733147658102,0.98052123,95874.0,95873.0,0.001001]
[1733147661325,1.07404765,95874.0,95873.0,0.001001]
[1733147661791,0.98052123,95874.0,95873.0,0.001001]
[1733147662002,1.07405022,95874.0,95873.0,0.001001]
[1733147662457,0.98052123,95874.0,95873.0,0.001001]
[1733147666400,1.07406438,95874.0,95873.0,0.001001]
[1733147666617,0.98052123,95874.0,95873.0,0.001001]
[1733147666831,1.12081182,95874.0,95873.0,0.001001]
[1733147667083,1.12167482,95874.0,95873.0,0.001001]
[1733147667313,0.98138423,95874.0,95873.0,0.001001]
[1733147667995,1.12172592,95874.0,95873.0,0.001001]
[1733147668219,0.98138423,95874.0,95873.0,0.001001]
[1733147668442,1.12172996,95874.0,95873.0,0.001001]
[1733147668639,0.98138423,95874.0,95873.0,0.001001]
[1733147668883,1.0749549,95874.0,95873.0,0.001001]
[1733147669123,0.98138423,95874.0,95873.0,0.001001]
[1733147669339,1.12172996,95874.0,95873.0,0.001001]
[1733147669584,0.98138423,95874.0,95873.0,0.001001]
[1733147670474,1.16850648,95874.0,95873.0,0.001001]
[1733147671199,0.98138423,95874.0,95873.0,0.001001]
[1733147671432,1.16850648,95874.0,95873.0,0.001001]
[1733147671670,0.98138423,95874.0,95873.0,0.001001]
[1733147671896,1.16867328,95874.0,95873.0,0.001001]
[1733147672598,1.21528704,95874.0,95873.0,0.001001]
[1733147672837,1.21557587,95874.0,95873.0,0.001001]
[1733147673063,0.98138423,95874.0,95873.0,0.001001]
[1733147675336,0.90578423,95874.0,95873.0,0.001001]
[1733147676252,1.1868142,95874.0,95873.0,0.001001]
[1733147676467,0.90578423,95874.0,95873.0,0.001001]
[1733147679785,0.90578423,95874.0,95873.0,1e-06]
[1733147680038,1.62991923,95874.0,95873.0,1e-06]
[1733147680277,1.94668019,95874.0,95873.0,1e-06]
[1733147681693,1.62991923,95874.0,95873.0,1e-06]
[1733147681929,1.35204723,95874.0,95873.0,1e-06]
[1733147682632,1.47484723,95874.0,95873.0,1e-06]
[1733147682871,0.758628,95864.0,95863.0,2e-07]
[1733147683096,0.86147321,95864.0,95863.0,2e-07]
[1733147683344,0.86921713,95864.0,95863.0,2e-07]
[1733147684954,0.208678,95841.0,95840.0,0.0758]
[1733147685200,0.21638757,95841.0,95840.0,0.07597793]
[1733147685673,0.31024229,95841.0,95840.0,0.07597793]